bitfinex/quotes_ETHUSD_20240716
["timestamp","ask_amount","ask_price","bid_price","bid_amount"]
[1721168118254,0.67720662,3431.8,3431.3,2.91434]
[1721168118456,0.60118265,3431.9,3431.5,2.91416]
[1721168118661,0.60118265,3432.0,3431.5,2.91416]
[1721168119038,0.97791077,3432.1,3431.5,2.91416]
[1721168119039,0.60118265,3431.9,3431.5,2.91416]
[1721168119268,0.60118265,3432.0,3431.5,2.91416]
[1721168119477,0.6772024,3431.9,3431.4,2.91424]
[1721168119681,0.60118265,3432.0,3431.5,2.91412]
[1721168120284,0.67720282,3432.0,3431.5,2.91412]
[1721168120454,0.60118265,3432.1,3431.5,2.91412]
[1721168120655,3.59087043,3432.1,3431.3,5.8286]
[1721168120992,3.51511265,3431.8,3431.1,2.91447]
[1721168121203,0.6772021,3431.7,3430.9,0.582941]
[1721168121350,0.6772021,3431.7,3430.8,2.91471]
[1721168121351,3.5913021,3431.6,3430.8,2.91471]
[1721168121549,3.5913021,3431.6,3430.3,8.99516]
[1721168121550,0.6772021,3431.5,3430.3,8.99516]
[1721168121849,0.07601945,3431.4,3431.0,2.91458]
[1721168122167,0.60118265,3431.5,3430.7,2.91479]
[1721168122349,0.67721425,3431.5,3430.7,2.91479]
[1721168122661,0.0760316,3431.4,3431.0,2.91453]
[1721168122859,0.60118265,3431.6,3431.0,2.91453]
[1721168123062,0.60118265,3431.6,3431.1,0.582913]
[1721168123657,0.60118265,3431.7,3431.3,2.91426]
[1721168123990,0.60118265,3431.9,3431.1,2.91449]
[1721168124198,0.60118265,3432.0,3431.6,2.91402]
[1721168124554,0.60118265,3432.0,3431.8,2.91391]
[1721168124777,0.60118265,3432.3,3431.9,0.55]
[1721168125095,0.60118265,3432.7,3432.4,2.91335]
[1721168125294,1.20831965,3433.0,3432.7,5.8263]
[1721168125295,0.60118265,3432.9,3432.7,5.8263]
[1721168125492,1.50307333,3433.5,3432.8,0.58263]
[1721168125692,0.1478772,3433.7,3433.3,2.91264]
[1721168125693,0.60118265,3433.6,3433.3,2.91264]
[1721168125937,0.1478772,3433.7,3433.4,2.91255]
[1721168126191,0.82504356,3433.7,3433.2,2.91265]
[1721168126361,0.07598371,3433.6,3433.2,2.91265]
[1721168126554,0.07598371,3433.6,3433.3,2.91263]
[1721168126769,0.1478772,3433.7,3433.3,2.91263]
[1721168126995,0.82504152,3433.7,3433.1,2.91276]
[1721168127208,0.1478772,3433.7,3433.2,3.46265]
[1721168128273,0.1478772,3433.7,3433.2,3.45155]
[1721168128696,2.91252,3433.5,3432.7,2.91315]
[1721168128904,2.91258,3433.4,3432.7,2.91315]
[1721168129192,2.91245,3433.6,3432.8,2.91305]
[1721168129557,2.91249,3433.5,3432.8,2.91305]
[1721168129758,3.66139985,3433.7,3432.8,3.49567]
[1721168129994,0.1478772,3433.7,3433.0,2.91282]
[1721168130295,2.91253,3433.5,3432.3,3.0]
[1721168130512,2.91241,3433.6,3432.4,0.55]
[1721168130806,2.91241,3433.6,3432.8,2.91306]
[1721168131364,3.0601972,3433.7,3433.0,2.9129]
[1721168131565,2.91245,3433.6,3432.8,2.91306]
[1721168131755,2.91251,3433.5,3432.8,2.91306]
[1721168132167,2.91251,3433.5,3432.6,2.91321]
[1721168132377,3.0601972,3433.7,3432.8,2.91307]
[1721168132378,2.91256,3433.4,3432.8,2.91307]
[1721168132711,2.91256,3433.4,3432.7,0.55]
[1721168133231,2.91256,3433.4,3432.7,3.46309]
[1721168133528,2.91256,3433.4,3432.7,3.4631]
[1721168133711,2.91278,3433.2,3432.4,2.9134]
[1721168134019,0.1478772,3433.7,3432.2,3.0]
[1721168134020,2.91288,3433.1,3432.2,5.91356]
[1721168134327,2.9127,3433.3,3432.2,5.91356]
[1721168134470,2.91306,3432.9,3432.1,2.91366]
[1721168135314,0.60118265,3433.5,3432.4,2.91339]
[1721168135503,2.91287,3433.1,3432.4,2.91339]
[1721168136210,2.91268,3433.3,3432.4,2.91339]
[1721168136373,2.91268,3433.3,3432.5,3.46327]
[1721168137811,2.91268,3433.3,3432.6,2.91324]
[1721168138013,3.0,3433.5,3432.7,0.55]
[1721168138215,5.91248,3433.5,3432.8,2.913]
[1721168138420,3.0,3433.5,3432.9,2.91298]
[1721168138616,5.91239,3433.6,3432.9,2.91298]
[1721168138803,0.1478772,3433.7,3433.0,0.55]
[1721168139119,0.1478772,3433.7,3432.7,0.951324]
[1721168139120,0.1478772,3433.7,3433.4,2.91255]
[1721168139288,0.1478772,3433.7,3433.5,2.91242]
[1721168139720,0.1478772,3433.7,3433.6,2.91239]
[1721168140223,0.1478772,3433.7,3433.4,2.91251]
[1721168140434,0.1478772,3433.7,3433.1,2.91275]
[1721168140617,0.1478772,3433.7,3432.8,2.91303]
[1721168140618,0.1478772,3433.7,3432.9,2.91297]
[1721168140778,2.91241,3433.6,3432.8,2.91303]
[1721168140974,2.91241,3433.6,3432.9,2.91298]
[1721168141332,0.1478772,3433.7,3433.0,0.55]
[1721168141537,0.1478772,3433.7,3433.2,2.91265]
[1721168141685,0.1478772,3433.7,3433.1,2.91278]
[1721168141881,0.1478772,3433.7,3433.2,2.91272]
[1721168142231,0.1478772,3433.7,3433.3,2.91263]
[1721168142782,0.1478772,3433.7,3433.5,2.91245]
[1721168144082,0.1478772,3433.7,3433.6,3.46239]
[1721168144517,0.1478772,3433.7,3433.3,2.91262]
[1721168145035,0.1478772,3433.7,3432.7,7.771324]
[1721168145209,3.0602372,3433.7,3433.0,2.91285]
[1721168146920,3.0602372,3433.7,3433.0,5.82569]
[1721168147125,3.0602372,3433.7,3433.1,2.9128]
[1721168147432,0.1478772,3433.7,3433.1,2.9128]
[1721168148000,0.1478772,3433.7,3433.3,2.91257]
[1721168148336,0.1478772,3433.7,3433.5,2.91245]
[1721168148634,0.1478772,3433.7,3433.3,2.91257]
[1721168148785,0.1478772,3433.7,3433.3,5.82516]
[1721168149133,0.1478772,3433.7,3433.4,2.91254]
[1721168150990,0.1478772,3433.7,3433.5,2.91246]
[1721168151190,0.1478772,3433.7,3433.5,3.494963]
[1721168151412,0.1478772,3433.7,3433.5,2.91246]
[1721168153327,0.1478772,3433.7,3433.6,6.37478]
[1721168154028,0.1478772,3433.7,3433.6,9.28717]
[1721168154529,0.1478772,3433.7,3433.6,18.26956]
[1721168154746,5.41382,3435.5,3433.6,18.26956]
[1721168154747,2.91082,3435.5,3434.8,2.91136]
[1721168154949,2.91096,3435.3,3434.5,2.91154]
[1721168155321,2.91096,3435.3,3434.7,2.91141]
[1721168155633,2.368,3435.8,3435.1,2.91106]
[1721168155634,2.96918265,3435.8,3435.1,2.91106]
[1721168155833,5.27853,3435.8,3435.1,2.91106]
[1721168156062,2.368,3435.8,3435.2,2.91098]
[1721168156339,2.91038,3436.0,3435.3,2.91093]
[1721168156533,2.91048,3435.9,3435.2,3.493184]
[1721168156912,2.91053,3435.8,3434.8,5.82129]
[1721168157113,2.91078,3435.5,3434.9,2.91129]
[1721168157307,2.91061,3435.7,3435.0,2.91113]
[1721168157521,2.91078,3435.5,3434.8,2.91]
[1721168157810,2.91061,3435.7,3435.1,2.9111]
[1721168158006,2.91077,3435.6,3434.8,2.91]
[1721168158239,2.91077,3435.6,3434.9,0.582143]
[1721168158758,2.91087,3435.4,3434.8,2.91]
[1721168158934,2.91075,3435.6,3434.9,2.91122]
[1721168159444,2.91079,3435.5,3434.8,2.91]
[1721168160336,2.91096,3435.3,3434.8,2.91]
[1721168160543,2.91079,3435.5,3434.9,2.91127]
[1721168161106,2.9107,3435.6,3434.9,2.91127]
[1721168161313,3.51157265,3436.0,3435.1,2.9111]
[1721168161607,5.91047,3435.9,3435.1,2.9111]
[1721168162052,5.91047,3435.9,3435.2,2.91103]
[1721168162944,3.0,3435.9,3435.3,2.91094]
[1721168163146,2.96978265,3436.2,3435.3,2.91094]
[1721168163147,5.91036,3436.0,3435.3,2.91094]
[1721168163349,5.91036,3436.0,3435.2,2.90917]
[1721168163574,2.91046,3435.9,3435.0,2.91118]
[1721168163746,5.91036,3436.0,3435.1,0.55]
[1721168163747,5.91055,3435.8,3435.1,0.55]
[1721168163953,5.91036,3436.0,3433.9,2.3577]
[1721168163954,2.91072,3435.6,3433.9,2.3577]
[1721168164139,2.91072,3435.6,3434.7,2.91139]
[1721168164140,2.91088,3435.4,3434.7,2.91139]
[1721168164468,2.91072,3435.6,3434.7,2.91139]
[1721168164469,5.82149,3435.6,3434.7,2.91139]
[1721168164664,2.91079,3435.5,3434.8,2.91137]
[1721168164870,0.60118265,3435.8,3434.5,2.91159]
[1721168165096,2.91154,3434.7,3433.6,2.91232]
[1721168165366,2.9119,3434.2,3433.4,2.9125]
[1721168165756,2.9119,3434.2,3433.5,2.91246]
[1721168165936,2.9119,3434.2,3433.5,3.494956]
[1721168166133,2.503,3434.5,3433.0,0.6777014]
[1721168166348,2.503,3434.5,3431.8,3.20599]
[1721168166349,2.91253,3433.5,3432.6,2.91321]
[1721168166557,2.3134,3433.9,3432.4,2.9134]
[1721168166558,2.91284,3433.1,3432.4,2.9134]
[1721168166755,2.91276,3433.2,3432.4,2.9134]
[1721168167036,2.91258,3433.4,3432.6,2.91321]
[1721168167375,0.60118265,3433.9,3433.2,2.91273]
[1721168167528,2.91241,3433.6,3432.8,2.91301]
[1721168167733,2.91241,3433.6,3432.6,2.73225346]
[1721168167734,2.91223,3433.8,3433.0,2.91282]
[1721168168169,2.91223,3433.8,3432.9,3.46296]
[1721168168170,2.91232,3433.7,3432.9,0.55]
[1721168168369,2.91223,3433.8,3431.4,2.91417]
[1721168168370,0.60118265,3433.8,3432.0,2.4302]
[1721168168541,2.91265,3433.3,3432.6,2.91324]
[1721168169466,2.91277,3433.2,3432.2,2.91356]
[1721168169670,2.91277,3433.2,3432.3,0.55]
[1721168169877,2.91277,3433.2,3432.3,3.46348]
[1721168170253,2.91307,3432.8,3431.8,2.91389]
[1721168170457,2.91316,3432.7,3432.0,2.91374]
[1721168170653,3.51411265,3433.0,3432.0,2.91374]
[1721168170867,0.60118265,3433.1,3432.3,2.91343]
[1721168171041,3.51402265,3433.1,3432.4,3.496105]
[1721168171246,2.91284,3433.1,3432.4,3.496105]
[1721168171488,0.60118265,3433.2,3432.6,2.91321]
[1721168171784,0.60118265,3433.5,3433.0,2.91284]
[1721168171986,0.60118265,3433.5,3432.4,0.582695]
[1721168171987,0.60118265,3434.0,3433.4,2.91251]
[1721168172169,3.51316265,3434.1,3433.5,2.91246]
[1721168172962,3.51316265,3434.1,3433.3,2.91259]
[1721168173163,3.51316265,3434.1,3433.4,0.55]
[1721168174356,0.67715641,3434.2,3433.5,2.91246]
[1721168174558,0.67715641,3434.1,3433.5,2.91246]
[1721168174752,0.60118265,3434.1,3433.5,2.91246]
[1721168174953,0.60118265,3434.1,3433.5,3.61662774]
[1721168175390,0.60118265,3434.2,3433.6,0.55]
[1721168175594,0.60118265,3434.6,3433.7,3.07]
[1721168175751,1.20831965,3434.9,3433.6,0.55]
[1721168175752,0.60118265,3434.9,3434.5,2.91155]
[1721168175951,0.60118265,3435.2,3434.7,2.91145]
[1721168176155,0.60118265,3435.4,3435.0,2.91113]
[1721168176387,0.60118265,3435.7,3435.1,0.55]
[1721168176553,3.81248068,3435.8,3435.1,0.55]
[1721168176554,3.51177265,3435.8,3435.1,0.55]
[1721168176749,0.07593721,3435.7,3435.1,0.55]
[1721168176956,3.51177265,3435.8,3435.1,0.55]
[1721168177389,0.60118265,3435.8,3435.1,4.09831]
[1721168177601,0.60118265,3435.9,3435.1,4.09831]
[1721168177917,3.51145265,3436.1,3435.1,1.18725]
[1721168178067,2.91036,3436.0,3435.3,2.91095]
[1721168178266,2.91036,3436.0,3435.2,2.91097]
[1721168178267,0.60118265,3436.0,3435.2,2.91097]
[1721168178471,3.51150265,3436.1,3435.3,3.46094]
[1721168178707,0.07593067,3436.0,3435.3,3.46094]
[1721168179004,0.60118265,3436.2,3435.4,2.91085]
[1721168179207,0.60118265,3436.3,3435.3,0.55]
[1721168179408,0.60118265,3436.6,3435.9,2.91044]
[1721168179620,0.60118265,3436.6,3435.4,0.59151]
[1721168179621,2.90996,3436.5,3435.6,2.91069]
[1721168179913,2.91003,3436.4,3435.7,3.46059]
[1721168180082,0.90189068,3436.8,3435.4,3.50237]
[1721168180083,2.91021,3436.2,3435.4,3.50237]
[1721168180268,0.60118265,3436.5,3435.5,0.55]
[1721168180467,0.90189068,3436.6,3435.5,0.55]
[1721168180468,0.60118265,3436.6,3435.5,0.55]
[1721168180701,0.67710715,3436.6,3435.3,0.55]
[1721168181376,2.90995,3436.5,3435.8,2.91052]
[1721168181574,3.51096265,3436.7,3435.8,2.91052]
[1721168181776,2.90978,3436.7,3435.9,3.46036]
[1721168182115,2.90978,3436.7,3435.9,4.097448]
[1721168182464,3.51079265,3436.9,3435.9,4.097448]
[1721168182465,2.90961,3436.9,3436.0,2.91034]
[1721168182664,3.0,3436.8,3436.1,0.55]
[1721168183074,3.0,3436.9,3436.2,2.91012]
[1721168183280,3.0,3436.9,3436.3,0.55]
[1721168183711,5.90961,3436.9,3436.3,0.55]
[1721168183878,5.90961,3436.9,3436.1,3.4602]
[1721168184086,5.90961,3436.9,3436.2,2.91018]
[1721168184087,3.0,3436.9,3436.2,2.91018]
[1721168184291,3.60118265,3437.0,3436.3,0.55]
[1721168184619,5.90952,3437.0,3436.3,0.55]
[1721168184985,0.74905985,3437.1,3436.3,0.55]
[1721168184986,0.1478772,3437.1,3436.3,0.55]
[1721168185175,0.1478772,3437.1,3436.8,2.90965]
[1721168185374,0.1478772,3437.1,3436.9,0.55]
[1721168186608,0.1478772,3437.1,3436.9,3.45959]
[1721168187227,0.1478772,3437.1,3436.9,0.55]
[1721168187714,0.1478772,3437.1,3436.9,0.895967]
[1721168188208,0.1478772,3437.1,3437.0,2.90951]
[1721168188414,0.1478772,3437.1,3437.0,3.45951]
[1721168188911,0.1478772,3437.1,3437.0,2.90951]
[1721168191228,0.1478772,3437.1,3436.9,0.345967]
[1721168191513,0.1478772,3437.1,3436.8,2.90961]
[1721168191812,0.1478772,3437.1,3436.1,2.2641]
[1721168192011,2.90951,3437.0,3435.9,2.91042]
[1721168192237,2.90951,3437.0,3435.7,5.3237]
[1721168192238,0.1478772,3437.1,3435.7,2.3237]
[1721168192372,0.1478772,3437.1,3435.9,2.91041]
[1721168192373,2.90978,3436.7,3435.9,2.91041]
[1721168192576,2.90978,3436.7,3436.0,2.9103]
[1721168193216,2.90985,3436.6,3435.7,3.14293]
[1721168193423,2.90994,3436.5,3435.6,2.91069]
[1721168193664,2.91011,3436.3,3435.4,2.91086]
[1721168193980,2.90956,3437.0,3435.6,2.91068]
[1721168193981,2.91002,3436.4,3435.6,2.91068]
[1721168194300,2.91011,3436.3,3435.6,2.91068]
[1721168194505,2.90998,3436.5,3435.6,3.492834]
[1721168194687,2.90965,3436.9,3435.8,2.91052]
[1721168194889,0.1478772,3437.1,3435.6,3.652154]
[1721168195119,0.1478772,3437.1,3436.4,2.90998]
[1721168195319,0.1478772,3437.1,3436.5,2.90991]
[1721168195475,0.1478772,3437.1,3436.7,2.90971]
[1721168195680,0.1478772,3437.1,3436.5,3.491869]
[1721168195928,0.1478772,3437.1,3436.5,3.491919]
[1721168196419,0.1478772,3437.1,3436.7,2.90971]
[1721168196594,0.1478772,3437.1,3436.5,0.581989]
[1721168197188,0.1478772,3437.1,3436.6,0.6402059]
[1721168197617,0.1478772,3437.1,3436.3,2.91008]
[1721168197819,0.1478772,3437.1,3436.5,2.90993]
[1721168198116,0.1478772,3437.1,3436.0,2.91029]
[1721168198339,0.1478772,3437.1,3435.5,2.91072]
[1721168198340,2.90989,3436.6,3435.5,2.91072]
[1721168198481,2.91027,3436.1,3435.3,2.91088]
[1721168199124,2.91063,3435.7,3434.9,2.91122]
[1721168199323,2.3434,3436.1,3435.0,2.9112]
[1721168199324,2.91055,3435.8,3435.0,2.9112]
[1721168199724,2.91063,3435.7,3435.0,2.9112]
[1721168199886,2.91063,3435.7,3435.0,3.493456]
[1721168200291,2.91063,3435.7,3434.8,2.91136]
[1721168200591,2.91063,3435.7,3434.0,3.07]
[1721168200592,2.91096,3435.3,3434.4,2.91166]
[1721168200793,2.91106,3435.2,3434.4,2.91166]
[1721168202015,2.91106,3435.2,3434.5,2.91162]
[1721168202329,2.91106,3435.2,3434.5,3.493969]
[1721168202533,2.91104,3435.2,3433.8,5.25824]
[1721168202691,2.9112,3435.0,3434.1,2.91194]
[1721168202892,2.9112,3435.0,3434.2,2.91187]
[1721168203112,2.9112,3435.0,3434.3,2.9118]
[1721168203313,2.9112,3435.0,3434.3,3.494185]
[1721168204658,2.91095,3435.3,3434.3,3.494185]
[1721168204814,2.91107,3435.2,3434.3,2.9118]
[1721168205155,2.91112,3435.1,3434.3,2.9118]
[1721168205848,2.91112,3435.1,3434.4,2.91171]
[1721168206554,2.91112,3435.1,3434.4,2.91165]
[1721168207111,2.91085,3435.5,3434.5,2.91162]
[1721168207354,5.91089,3435.4,3434.5,2.91162]
[1721168207555,5.91088,3435.4,3434.5,2.91162]
[1721168207849,5.91088,3435.4,3434.4,0.58235]
[1721168207850,2.91104,3435.2,3434.4,2.91169]
[1721168208222,2.91112,3435.1,3434.2,2.91185]
[1721168208560,2.91112,3435.1,3434.4,2.91165]
[1721168208758,3.0,3435.4,3433.9,2.91213]
[1721168208967,2.3588,3434.7,3433.6,2.91233]
[1721168209128,2.91176,3434.4,3433.6,2.91238]
[1721168209324,2.91176,3434.4,3433.7,0.291238]
[1721168209548,2.91181,3434.3,3433.7,0.291238]
[1721168209748,2.3588,3434.7,3433.3,2.91263]
[1721168209749,2.91189,3434.2,3433.3,2.91263]
[1721168210223,2.91207,3434.0,3433.1,2.91279]
[1721168210546,5.18113,3433.8,3432.7,2.91309]
[1721168210749,2.91244,3433.6,3432.7,3.440389]
[1721168210923,2.91244,3433.6,3432.9,2.91295]
[1721168211833,5.18113,3433.8,3433.0,2.9129]
[1721168212043,2.91189,3434.2,3433.2,2.91272]
[1721168212248,3.0,3434.1,3433.2,2.91272]
[1721168212560,2.91215,3433.9,3433.1,2.9128]
[1721168212768,2.91213,3434.0,3433.2,2.91273]
[1721168213070,2.91156,3434.6,3433.3,2.97086368]
[1721168213249,0.60118265,3434.9,3433.3,2.97086368]
[1721168213250,5.91163,3434.5,3433.3,2.97086368]
[1721168213569,2.3224,3434.9,3433.4,2.91252]
[1721168213767,3.93018265,3435.6,3433.3,5.54243743]
[1721168213768,2.9111,3435.2,3434.2,2.91184]
[1721168213984,2.9111,3435.2,3434.3,2.97000797]
[1721168214339,2.91114,3435.1,3434.3,2.97000797]
[1721168214561,2.91123,3435.0,3434.3,2.91178]
[1721168214873,2.91146,3434.7,3433.8,2.9122]
[1721168215040,2.91146,3434.7,3433.6,2.91235]
[1721168215653,2.3224,3434.8,3433.5,0.87569416]
[1721168215654,2.91196,3434.2,3433.5,0.87569416]
[1721168215971,2.9116,3434.6,3433.7,2.91229]
[1721168216179,2.91164,3434.5,3433.7,2.91229]
[1721168216492,2.3224,3434.8,3433.4,2.91256]
[1721168216493,2.91192,3434.2,3433.4,2.91256]
[1721168216832,2.91192,3434.2,3433.2,2.91268]
[1721168217076,0.60118265,3434.9,3432.9,5.91296]
[1721168217077,2.91233,3433.7,3432.9,2.91297]
[1721168217238,2.9124,3433.6,3432.7,2.91313]
[1721168217772,5.17047,3433.8,3433.0,2.9129]
[1721168218269,2.91219,3433.9,3433.2,2.91271]
[1721168218569,5.91183,3434.3,3433.3,2.91264]
[1721168218812,3.0,3434.3,3433.4,2.91255]
[1721168219088,2.91219,3433.9,3433.1,2.9128]
[1721168219254,2.91219,3433.9,3433.0,3.32311274]
[1721168219450,2.91231,3433.7,3432.8,2.91304]
[1721168219657,2.9125,3433.5,3432.6,2.91322]
[1721168219877,2.9125,3433.5,3432.8,2.91301]
[1721168220500,2.91222,3433.8,3432.9,2.91298]
[1721168220651,3.0,3433.7,3433.0,2.91283]
[1721168220859,5.91214,3433.9,3433.0,3.495461]
[1721168221166,5.91214,3433.9,3433.0,2.91288]
[1721168221368,3.0,3433.9,3433.2,2.91266]
[1721168221563,3.0,3433.9,3433.3,2.91264]
[1721168223553,2.9116,3434.6,3433.3,2.3769]
[1721168223897,2.91163,3434.5,3433.7,2.91229]
[1721168224199,2.91178,3434.4,3433.7,2.91229]
[1721168225269,2.91178,3434.4,3433.5,2.91247]
[1721168225473,2.91205,3434.0,3433.1,0.30422539]
[1721168225809,2.91198,3434.1,3433.1,2.91277]
[1721168226107,2.91214,3433.9,3433.2,2.91272]
[1721168226521,2.91198,3434.1,3433.3,2.91262]
[1721168226671,2.91215,3433.9,3433.1,2.91276]
[1721168227013,2.9121,3434.0,3433.2,2.91272]
[1721168227225,2.91216,3433.9,3433.1,2.91275]
[1721168227370,2.91216,3433.9,3433.0,0.30377568]
[1721168227371,2.91231,3433.7,3433.0,0.30377568]
[1721168227567,2.91231,3433.7,3432.3,2.3067]
[1721168227568,2.91252,3433.5,3432.7,2.91314]
[1721168227882,3.0,3434.2,3433.3,2.91257]
[1721168228223,0.60118265,3434.7,3433.3,2.91257]
[1721168228224,2.4137,3435.0,3433.3,3.07]
[1721168228370,5.91137,3434.9,3433.9,2.91207]
[1721168228568,2.91178,3434.4,3433.4,2.91255]
[1721168228831,2.91158,3434.6,3433.6,2.91232]
[1721168229135,5.82256,3435.0,3434.1,2.91194]
[1721168229413,2.336,3435.4,3433.8,2.91221]
[1721168229414,2.91147,3434.7,3433.8,2.91221]
[1721168229614,5.82301,3434.7,3433.8,2.91221]
[1721168229821,2.91147,3434.7,3433.8,2.91215]
[1721168230124,2.91165,3434.5,3433.8,2.91215]
[1721168230412,2.91195,3434.2,3433.5,2.91247]
[1721168230616,2.91161,3434.6,3433.9,2.91206]
[1721168230982,2.91125,3435.0,3434.1,2.91191]
[1721168231217,3.0,3434.9,3434.1,2.91188]
[1721168231426,2.91138,3434.8,3433.9,2.91209]
[1721168231639,2.91157,3434.6,3433.9,2.91209]
[1721168232915,2.91157,3434.6,3434.0,2.91204]
[1721168233613,5.91129,3434.9,3434.0,2.91197]
[1721168233819,5.91129,3434.9,3434.2,2.91185]
[1721168234442,3.0,3434.9,3434.2,2.91185]
[1721168234761,2.336,3435.4,3434.7,2.91141]
[1721168234907,2.336,3435.4,3434.8,2.91137]
[1721168235309,2.336,3435.4,3434.6,2.91149]
[1721168235541,5.24687,3435.4,3434.6,2.91149]
[1721168236410,5.24687,3435.4,3434.7,2.91146]
[1721168236612,5.24687,3435.4,3434.6,2.91149]
[1721168236850,2.91095,3435.3,3434.6,2.91149]
[1721168237682,2.91095,3435.3,3434.7,2.91145]
[1721168237855,2.91095,3435.3,3434.7,2.91146]
[1721168238058,2.336,3435.4,3434.7,2.91146]
[1721168238261,2.336,3435.4,3434.7,3.493755]
[1721168238863,2.336,3435.4,3434.8,2.91133]
[1721168239133,2.336,3435.4,3434.7,0.582295]
[1721168239134,2.336,3435.4,3435.0,2.91119]
[1721168239383,2.336,3435.4,3435.3,5.8219]
[1721168239539,2.336,3435.4,3435.3,2.91095]
[1721168239739,2.336,3435.4,3434.7,0.582295]
[1721168240164,2.336,3435.4,3435.1,2.91106]
[1721168240476,2.336,3435.4,3435.3,2.91095]
[1721168241836,2.336,3435.4,3435.3,5.8219]
[1721168242977,2.336,3435.4,3435.3,6.3719]
[1721168243186,2.336,3435.4,3435.3,9.28285]
[1721168243551,2.336,3435.4,3435.3,12.28285]
[1721168243738,2.336,3435.4,3435.3,14.3691726]
[1721168244356,2.336,3435.4,3435.3,11.4582226]
[1721168244875,2.336,3435.4,3435.3,8.4582226]
[1721168245083,2.336,3435.4,3435.3,6.3719]
[1721168245860,2.336,3435.4,3435.3,9.28285]
[1721168246397,2.336,3435.4,3435.3,18.2638]
[1721168248177,2.336,3435.4,3435.3,20.5548]
[1721168250175,2.044,3435.4,3435.3,20.5548]
[1721168250353,2.044,3435.4,3435.3,22.9305096]
[1721168251700,0.1478772,3437.1,3436.8,2.9096]
[1721168252202,0.1478772,3437.1,3437.0,2.90951]
[1721168252350,0.1478772,3437.1,3437.0,3.200461]
[1721168252550,0.1478772,3437.1,3437.0,6.109971]
[1721168252753,0.1478772,3437.1,3437.0,3.200461]
[1721168253251,0.1478772,3437.1,3437.0,6.109971]
[1721168253653,0.1478772,3437.1,3437.0,3.200461]
[1721168254161,0.1478772,3437.1,3437.0,6.109971]
[1721168254903,0.1478772,3437.1,3437.0,3.200461]
[1721168255194,0.1478772,3437.1,3437.0,2.90951]
[1721168255792,0.1478772,3437.1,3436.8,2.90966]
[1721168255993,0.1478772,3437.1,3437.0,2.90951]
[1721168256211,0.1478772,3437.1,3436.2,5.291]
[1721168256212,0.1478772,3437.1,3436.2,2.91016]
[1721168256358,2.34,3437.0,3435.8,2.91047]
[1721168256559,0.1478772,3437.1,3436.8,2.90967]
[1721168256794,0.1478772,3437.1,3437.0,2.90951]
[1721168259590,0.1478772,3437.1,3437.0,5.81902]
[1721168260378,0.1478772,3437.1,3437.0,6.36902]
[1721168262077,0.1478772,3437.1,3437.0,5.81902]
[1721168262276,0.1478772,3437.1,3437.0,6.950922]
[1721168265821,0.1478772,3437.1,3437.0,6.400922]
[1721168266024,2.5238772,3437.1,3436.4,2.90999]
[1721168266228,2.5238772,3437.1,3436.1,2.91025]
[1721168266389,2.90974,3436.8,3435.9,2.9104]
[1721168266581,3.74406772,3436.8,3435.9,2.91038]
[1721168266783,3.74406772,3436.8,3435.9,5.82075]
[1721168267089,3.74406772,3436.8,3435.9,2.91037]
[1721168267311,2.5238772,3437.1,3436.3,2.91002]
[1721168267528,2.5238772,3437.1,3436.1,2.91023]
[1721168267529,2.90952,3437.0,3436.1,2.91023]
[1721168267879,2.90952,3437.0,3436.3,2.91005]
[1721168268076,5.4333672,3437.1,3436.4,2.91]
[1721168268383,2.5238772,3437.1,3435.8,3.07]
[1721168268587,2.5238772,3437.1,3436.4,5.81995]
[1721168268780,2.5238772,3437.1,3436.4,2.90996]
[1721168269296,2.5238772,3437.1,3436.5,2.90987]
[1721168269972,2.5238772,3437.1,3435.9,3.76743]
[1721168269973,2.90975,3436.8,3435.9,2.91038]
[1721168270176,2.5238772,3437.1,3435.5,2.91076]
[1721168270490,2.91041,3436.0,3435.3,2.91089]
[1721168270694,2.91072,3435.6,3435.2,2.91]
[1721168271111,2.91044,3436.0,3435.2,5.82096]
[1721168271272,2.2733,3436.1,3435.2,5.82096]
[1721168271273,2.91045,3435.9,3435.2,5.82096]
[1721168271479,2.2733,3436.1,3435.4,2.9108]
[1721168271673,8.18358,3436.1,3435.4,2.9108]
[1721168272109,6.382668,3436.1,3435.2,2.91]
[1721168272315,2.91062,3435.7,3435.2,2.91]
[1721168272518,8.18358,3436.1,3435.2,2.91]
[1721168272679,5.2733,3436.1,3435.2,2.91]
[1721168273010,2.91036,3436.0,3435.2,2.91]
[1721168273211,2.91011,3436.3,3435.5,2.91077]
[1721168273430,2.91026,3436.2,3435.5,2.91077]
[1721168273584,5.91026,3436.2,3435.5,2.91077]
[1721168273939,2.91027,3436.1,3435.5,2.91077]
[1721168274300,3.0,3436.2,3435.5,2.91077]
[1721168274544,3.0,3436.2,3435.7,2.91061]
[1721168274823,5.91002,3436.4,3435.7,2.91061]
[1721168275412,7.07936861,3436.4,3435.7,2.91061]
[1721168276684,7.07936861,3436.4,3435.5,2.91077]
[1721168276685,2.91025,3436.2,3435.5,2.91077]
[1721168276908,5.91027,3436.1,3435.5,2.91077]
[1721168277485,2.91036,3436.0,3435.2,2.91]
[1721168278191,2.91058,3435.8,3435.2,2.91]
[1721168278783,2.91062,3435.7,3435.2,2.91]
[1721168279136,2.3132,3435.5,3435.2,2.91]
[1721168279293,2.91089,3435.4,3434.5,2.91159]
[1721168279618,2.91123,3435.0,3434.1,2.91195]
[1721168279818,2.91143,3434.8,3434.1,2.91195]
[1721168280019,2.91123,3435.0,3434.1,3.494355]
[1721168280219,2.91123,3435.0,3434.1,5.82385]
[1721168280220,2.9113,3434.9,3434.1,5.82385]